fUSD/lending_fUSD_20250109
["ID","MTS","AMOUNT","RATE_DAILY","PERIOD"]
[348283023,1736431884715,-500.0,0.00011914,2]
[348283024,1736431884725,-978.97,0.00011914,2]
[348283025,1736431884736,-500.0,0.00011914,2]
[348283026,1736431884746,-500.0,0.00011914,2]
[348283027,1736431884761,-540.48,0.00011914,2]
[348283028,1736431884772,-500.0,0.00011914,2]
[348283029,1736431884790,-500.0,0.00011914,2]
[348283030,1736431884806,-500.0,0.00011914,2]
[348283031,1736431884816,-500.0,0.00011914,2]
[348283032,1736431884825,-500.0,0.00011914,2]
[348283033,1736431884836,-500.0,0.00011914,2]
[348283034,1736431884847,-500.0,0.00011914,2]
[348283035,1736431884858,-500.0,0.00011914,2]
[348283036,1736431884867,-500.0,0.00011914,2]
[348283037,1736431884879,-500.0,0.00011914,2]
[348283038,1736431884891,-500.0,0.00011914,2]
[348283039,1736431884900,-381.56,0.00011914,2]
[348283040,1736431884910,-243.68,0.00011914,2]
[348283041,1736431884920,-500.0,0.00011914,2]
[348283042,1736431884930,-500.0,0.00011914,2]
[348283043,1736431884940,-500.0,0.00011914,2]
[348283044,1736431884949,-500.0,0.00011914,2]
[348283045,1736431884959,-500.0,0.00011914,2]
[348283046,1736431884969,-500.0,0.00011914,2]
[348283047,1736431884979,-151.91,0.00011914,2]
[348283048,1736431884989,-500.0,0.00011914,2]
[348283049,1736431884999,-500.0,0.00011914,2]
[348283050,1736431885013,-500.0,0.00011914,2]
[348283051,1736431885023,-500.0,0.00011914,2]
[348283052,1736431885033,-500.0,0.00011914,2]
[348283053,1736431885042,-500.0,0.00011914,2]
[348283054,1736431885052,-500.0,0.00011914,2]
[348283055,1736431885062,-500.0,0.00011914,2]
[348283056,1736431885073,-2395.35,0.00011914,2]
[348283057,1736431885083,-500.0,0.00011914,2]
[348283058,1736431885094,-500.0,0.00011914,2]
[348283059,1736431885104,-1465.38,0.00011914,2]
[348283060,1736431885114,-269.32,0.00011914,2]
[348283061,1736431885124,-1065.2,0.00011914,2]
[348283062,1736431885135,-500.0,0.00011914,2]
[348283063,1736431885145,-500.0,0.00011914,2]
[348283064,1736431885155,-1045.56,0.00011914,2]
[348283065,1736431885165,-5712.3,0.00011914,2]
[348283066,1736431885175,-702.11,0.00011914,2]
[348283067,1736431885185,-500.0,0.00011914,2]
[348283068,1736431885195,-2891.27,0.00011914,2]
[348283069,1736431885205,-500.0,0.00011914,2]
[348283070,1736431885215,-500.0,0.00011914,2]
[348283071,1736431885226,-500.0,0.00011914,2]
[348283072,1736431885236,-815.782912,0.00011914,2]
[348283073,1736431885247,-819.39,0.00011914,2]
[348283074,1736431885258,-500.0,0.00011914,2]
[348283075,1736431885269,-515.58,0.00011914,2]
[348283076,1736431885279,-500.0,0.00011914,2]
[348283077,1736431885289,-1007.159246,0.00011914,2]
[348283078,1736431885299,-500.0,0.00011914,2]
[348283079,1736431885308,-561.21,0.00011914,2]
[348283080,1736431885318,-500.0,0.00011914,2]
[348283081,1736431885328,-1682.89,0.00011914,2]
[348283082,1736431885338,-1970.74,0.00011914,2]
[348283083,1736431885347,-500.0,0.00011914,2]
[348283084,1736431885357,-500.0,0.00011914,2]
[348283085,1736431885367,-500.0,0.00011914,2]
[348283086,1736431885377,-1475.63,0.00011914,2]
[348283087,1736431885386,-2202.96,0.00011914,2]
[348283088,1736431885396,-3114.12,0.00011914,2]
[348283089,1736431885406,-212.04,0.00011914,2]
[348283090,1736431885417,-3459.41,0.00011914,2]
[348283091,1736431885429,-733.84,0.00011914,2]
[348283092,1736431885439,-1612.09,0.00011914,2]
[348283093,1736431885450,-179.8,0.00011914,2]
[348283094,1736431885461,-1460.46,0.00011914,2]
[348283095,1736431885472,-1720.55,0.00011914,2]
[348283096,1736431885482,-500.0,0.00011914,2]
[348283097,1736431885493,-591.01,0.00011914,2]
[348283098,1736431885504,-171.44,0.00011914,2]
[348283099,1736431885518,-851.24,0.00011914,2]
[348283100,1736431885528,-1082.16,0.00011914,2]
[348283101,1736431885538,-500.0,0.00011914,2]
[348283102,1736431885549,-1931.99,0.00011914,2]
[348283103,1736431885568,-500.0,0.00011914,2]
[348283104,1736431885577,-500.0,0.00011914,2]
[348283105,1736431885586,-500.0,0.00011914,2]
[348283106,1736431885597,-572.57,0.00011914,2]
[348283107,1736431885609,-500.0,0.00011914,2]
[348283108,1736431885618,-578.75,0.00011914,2]
[348283109,1736431885627,-500.0,0.00011914,2]
[348283110,1736431885637,-500.0,0.00011914,2]
[348283111,1736431885647,-228.08,0.00011914,2]
[348283112,1736431885657,-500.0,0.00011914,2]
[348283113,1736431885668,-786.75,0.00011914,2]
[348283114,1736431885678,-851.23,0.00011914,2]
[348283115,1736431885688,-1977.57,0.00011914,2]
[348283116,1736431885699,-500.0,0.00011914,2]
[348283117,1736431885709,-2212.93,0.00011914,2]
[348283118,1736431885719,-500.0,0.00011914,2]
[348283119,1736431885729,-500.0,0.00011914,2]
[348283120,1736431885739,-500.0,0.00011914,2]
[348283121,1736431885749,-500.0,0.00011915,2]
[348283122,1736431885762,-500.0,0.00011915,2]
[348283123,1736431885772,-500.0,0.00011915,2]
[348283124,1736431885781,-500.0,0.00011915,2]
[348283125,1736431885791,-500.0,0.00011915,2]
[348283126,1736431885801,-500.0,0.00011915,2]
[348283127,1736431885811,-500.0,0.00011915,2]
[348283128,1736431885821,-500.0,0.00011915,2]
[348283129,1736431885831,-500.0,0.00011915,2]
[348283130,1736431885840,-500.0,0.00011915,2]
[348283131,1736431885851,-500.0,0.00011915,2]
[348283132,1736431885861,-195.3,0.00011915,2]
[348283133,1736431885871,-500.0,0.00011915,2]
[348283134,1736431885882,-500.0,0.00011915,2]
[348283135,1736431886022,-1536.68,0.00011915,2]
[348283136,1736431886033,-500.0,0.00011915,2]
[348283137,1736431886043,-500.0,0.00011915,2]
[348283138,1736431886053,-500.0,0.00011915,2]
[348283139,1736431886062,-2004.11,0.00011915,2]
[348283140,1736431886073,-500.0,0.00011915,2]
[348283141,1736431886083,-500.0,0.00011915,2]
[348283142,1736431886093,-444.25,0.00011915,2]
[348283143,1736431886103,-500.0,0.00011915,2]
[348283144,1736431886114,-500.0,0.00011915,2]
[348283145,1736431886124,-1380.04,0.00011915,2]
[348283146,1736431886134,-500.0,0.00011915,2]
[348283147,1736431886143,-500.0,0.00011915,2]
[348283148,1736431886153,-500.0,0.00011915,2]
[348283149,1736431886163,-500.0,0.00011915,2]
[348283150,1736431886172,-500.0,0.00011915,2]
[348283151,1736431886182,-500.0,0.00011915,2]
[348283152,1736431886192,-500.0,0.00011915,2]
[348283153,1736431886200,-622.88,0.00011915,2]
[348283154,1736431886210,-500.0,0.00011915,2]
[348283155,1736431886219,-500.0,0.00011915,2]
[348283156,1736431886229,-500.0,0.00011915,2]
[348283157,1736431886238,-500.0,0.00011915,2]
[348283158,1736431886249,-561.21,0.00011915,2]
[348283159,1736431886261,-500.0,0.00011915,2]
[348283160,1736431886271,-269.9,0.00011915,2]
[348283161,1736431886280,-582.83519836,0.00011915,2]
[348283162,1736431886289,-1082.03,0.00011915,2]
[348283163,1736431886299,-251.22,0.00011915,2]
[348283164,1736431886310,-500.0,0.00011915,2]
[348283165,1736431886320,-162.06830582,0.00011915,2]
[348283166,1736431886330,-500.0,0.00011915,2]
[348283167,1736431886340,-752.54,0.00011915,2]
[348283168,1736431886350,-782.4,0.00011916,2]
[348283169,1736431886359,-500.0,0.00011916,2]
[348283170,1736431886368,-1000.48,0.00011916,2]
[348283171,1736431886377,-722.5,0.00011916,2]
[348283172,1736431886386,-608.97,0.00011916,2]
[348283173,1736431886396,-3501.74,0.00011916,2]
[348283174,1736431886407,-3501.74,0.00011916,2]
[348283175,1736431886416,-1572.69,0.00011916,2]
[348283176,1736431886430,-705.58,0.00011916,2]
[348283177,1736431886439,-772.69,0.00011916,2]
[348283178,1736431886449,-555.89,0.00011916,2]
[348283179,1736431886459,-500.0,0.00011916,2]
[348283180,1736431886469,-500.0,0.00011916,2]
[348283181,1736431886479,-500.0,0.00011916,2]
[348283182,1736431886488,-500.0,0.00011916,2]
[348283183,1736431886498,-500.0,0.00011916,2]
[348283184,1736431886512,-500.0,0.00011916,2]
[348283185,1736431886522,-150.0,0.00011935,2]
[348283186,1736431886532,-594.29,0.00011942,2]
[348283187,1736431886542,-150.0,0.00011962,2]
[348283188,1736431886554,-203.83894166,0.00011977,2]
[348283189,1736431886564,-150.0,0.0001198,2]
[348283190,1736431886574,-750.75,0.00012,2]
[348283191,1736431886584,-29476.53148066,0.00012,3]
[348283192,1736431886594,-18936.93466914,0.00012,3]
[348283193,1736431886604,-150.0,0.0001202,2]
[348283194,1736431886614,-426.97263627,0.00012031,2]
[348283195,1736431886624,-173.3316784,0.00012053,2]
[348283196,1736431886634,-200.0,0.00012055,2]
[348283197,1736431886644,-150.0,0.00012061,2]
[348283198,1736431886655,-3746.46153348,0.000121,2]
[348283199,1736431886664,-1130.75735013,0.00012116,2]
[348283200,1736431886675,-150.0,0.00012122,2]
[348283201,1736431886684,-203.83894166,0.00012131,2]
[348283202,1736431886694,-150.0,0.00012169,2]
[348283203,1736431886704,-152.0,0.00012179,3]
[348283204,1736431886714,-883.54,0.00012187,2]
[348283205,1736431886724,-1341.04,0.00012187,2]
[348283206,1736431886734,-1285.16,0.00012187,2]
[348283207,1736431886743,-561.94,0.00012187,2]
[348283208,1736431886755,-538.52,0.00012187,2]
[348283209,1736431886765,-610.55,0.00012187,2]
[348283210,1736431886774,-2117.55,0.00012187,2]
[348283211,1736431886783,-500.0,0.00012187,2]
[348283212,1736431886794,-500.0,0.00012187,2]
[348283213,1736431886804,-500.0,0.00012187,2]
[348283214,1736431886813,-500.0,0.00012187,2]
[348283215,1736431886824,-668.9,0.00012187,2]
[348283216,1736431886833,-500.0,0.00012187,2]
[348283217,1736431886843,-500.0,0.00012187,2]
[348283218,1736431886853,-829.48,0.00012187,2]
[348283219,1736431886863,-542.37,0.00012187,2]
[348283220,1736431886873,-519.77,0.00012187,2]
[348283221,1736431886882,-500.0,0.00012188,2]
[348283222,1736431886891,-500.0,0.00012188,2]
[348283223,1736431886901,-500.0,0.00012188,2]
[348283224,1736431886910,-500.0,0.00012188,2]
[348283225,1736431886921,-400.21,0.00012188,2]
[348283226,1736431886930,-500.0,0.00012188,2]
[348283227,1736431886940,-500.0,0.00012188,2]
[348283228,1736431886950,-321.5,0.00012188,2]
[348283229,1736431886959,-500.0,0.00012188,2]
[348283230,1736431886969,-500.0,0.00012188,2]
[348283231,1736431886979,-500.0,0.00012188,2]
[348283232,1736431886989,-978.97,0.00012188,2]
[348283233,1736431886999,-500.0,0.00012188,2]
[348283234,1736431887013,-500.0,0.00012188,2]
[348283235,1736431887024,-500.0,0.00012188,2]
[348283236,1736431887034,-192.41,0.00012188,2]
[348283237,1736431887044,-500.0,0.00012188,2]
[348283238,1736431887055,-500.0,0.00012188,2]
[348283239,1736431887064,-500.0,0.00012188,2]
[348283240,1736431887074,-500.0,0.00012188,2]
[348283241,1736431887084,-500.0,0.00012188,2]
[348283242,1736431887093,-627.7,0.00012188,2]
[348283243,1736431887103,-500.0,0.00012188,2]
[348283244,1736431887113,-500.0,0.00012188,2]
[348283245,1736431887123,-500.0,0.00012188,2]
[348283246,1736431887133,-500.0,0.00012188,2]
[348283247,1736431887143,-500.0,0.00012188,2]
[348283248,1736431887152,-500.0,0.00012188,2]
[348283249,1736431887162,-500.0,0.00012188,2]
[348283250,1736431887171,-500.0,0.00012188,2]
[348283251,1736431887181,-500.0,0.00012188,2]
[348283252,1736431887191,-500.0,0.00012188,2]
[348283253,1736431887201,-500.0,0.00012188,2]
[348283254,1736431887211,-353.52,0.00012188,2]
[348283255,1736431887221,-500.0,0.00012188,2]
[348283256,1736431887231,-500.0,0.00012188,2]
[348283257,1736431887243,-500.0,0.00012188,2]
[348283258,1736431887254,-500.0,0.00012188,2]
[348283259,1736431887266,-500.0,0.00012188,2]
[348283260,1736431887275,-2395.35,0.00012188,2]
[348283261,1736431887285,-500.0,0.00012188,2]
[348283262,1736431887294,-500.0,0.00012188,2]
[348283263,1736431887304,-1465.38,0.00012188,2]
[348283264,1736431887313,-1065.2,0.00012188,2]
[348283265,1736431887324,-500.0,0.00012188,2]
[348283266,1736431887334,-500.0,0.00012188,2]
[348283267,1736431887343,-1045.56,0.00012188,2]
[348283268,1736431887353,-5712.3,0.00012188,2]
[348283269,1736431887363,-702.11,0.00012188,2]
[348283270,1736431887373,-500.0,0.00012188,2]
[348283271,1736431887382,-2891.27,0.00012188,2]
[348283272,1736431887392,-500.0,0.00012188,2]
[348283273,1736431887401,-500.0,0.00012188,2]
[348283274,1736431887411,-190.86,0.00012188,2]
[348283275,1736431887421,-815.782912,0.00012188,2]
[348283276,1736431887434,-819.39,0.00012188,2]
[348283277,1736431887443,-500.0,0.00012188,2]
[348283278,1736431887453,-515.58,0.00012188,2]
[348283279,1736431887464,-291.39,0.00012188,2]
[348283280,1736431887472,-1007.159246,0.00012188,2]
[348283281,1736431887482,-505.68,0.00012188,2]
[348283282,1736431887492,-561.21,0.00012188,2]
[348283283,1736431887507,-532.1,0.00012188,2]
[348283284,1736431887517,-1682.89,0.00012188,2]
[348283285,1736431887526,-1970.74,0.00012188,2]
[348283286,1736431887535,-500.0,0.00012188,2]
[348283287,1736431887544,-484.37,0.00012188,2]
[348283288,1736431887554,-500.0,0.00012188,2]
[348283289,1736431887564,-1475.63,0.00012188,2]
[348283290,1736431887574,-2202.96,0.00012188,2]
[348283291,1736431887584,-3114.12,0.00012188,2]
[348283292,1736431887594,-3459.41,0.00012188,2]
[348283293,1736431887604,-733.84,0.00012188,2]
[348283294,1736431887614,-1612.09,0.00012188,2]
[348283295,1736431887624,-1460.46,0.00012188,2]
[348283296,1736431887634,-1720.55,0.00012188,2]
[348283297,1736431887644,-500.0,0.00012188,2]
[348283298,1736431887655,-591.01,0.00012188,2]
[348283299,1736431887664,-851.24,0.00012188,2]
[348283300,1736431887674,-1082.16,0.00012188,2]
[348283301,1736431887685,-500.0,0.00012188,2]
[348283302,1736431887694,-500.0,0.00012188,2]
[348283303,1736431887705,-1931.99,0.00012188,2]
[348283304,1736431887715,-500.0,0.00012188,2]
[348283305,1736431887725,-500.0,0.00012188,2]
[348283306,1736431887736,-572.57,0.00012188,2]
[348283307,1736431887746,-500.0,0.00012188,2]
[348283308,1736431887758,-500.0,0.00012188,2]
[348283309,1736431887767,-500.0,0.00012188,2]
[348283310,1736431887776,-500.0,0.00012188,2]
[348283311,1736431887785,-786.75,0.00012188,2]
[348283312,1736431887795,-851.23,0.00012188,2]
[348283313,1736431887805,-1977.57,0.00012188,2]
[348283314,1736431887815,-576.72,0.00012188,2]
[348283315,1736431887825,-2212.93,0.00012188,2]
[348283316,1736431887833,-500.0,0.00012188,2]
[348283317,1736431887843,-500.0,0.00012188,2]
[348283318,1736431887852,-500.0,0.00012188,2]
[348283319,1736431887862,-500.0,0.00012189,2]
[348283320,1736431887871,-500.0,0.00012189,2]
[348283321,1736431887881,-500.0,0.00012189,2]
[348283322,1736431887891,-500.0,0.00012189,2]
[348283323,1736431887900,-500.0,0.00012189,2]
[348283324,1736431887910,-341.79,0.00012189,2]
[348283325,1736431887919,-500.0,0.00012189,2]
[348283326,1736431887929,-500.0,0.00012189,2]
[348283327,1736431887939,-407.28,0.00012189,2]
[348283328,1736431887949,-500.0,0.00012189,2]
[348283329,1736431887960,-320.81602522,0.00012189,2]
[348283330,1736431887970,-500.0,0.00012189,2]
[348283331,1736431887980,-500.0,0.00012189,2]
[348283332,1736431887989,-1536.68,0.00012189,2]
[348283333,1736431887999,-223.95,0.00012189,2]
[348283334,1736431888012,-500.0,0.00012189,2]
[348283335,1736431888022,-2004.11,0.00012189,2]
[348283336,1736431888032,-500.0,0.00012189,2]
[348283337,1736431888042,-500.0,0.00012189,2]
[348283338,1736431888052,-500.0,0.00012189,2]
[348283339,1736431888062,-1380.04,0.00012189,2]
[348283340,1736431888072,-500.0,0.00012189,2]
[348283341,1736431888081,-500.0,0.00012189,2]
[348283342,1736431888090,-500.0,0.00012189,2]
[348283343,1736431888100,-500.0,0.00012189,2]
[348283344,1736431888110,-500.0,0.00012189,2]
[348283345,1736431888119,-622.88,0.00012189,2]
[348283346,1736431888129,-500.0,0.00012189,2]
[348283347,1736431888139,-500.0,0.00012189,2]
[348283348,1736431888277,-500.0,0.00012189,2]
[348283349,1736431888288,-500.0,0.00012189,2]
[348283350,1736431888299,-561.21,0.00012189,2]
[348283351,1736431888308,-216.58,0.00012189,2]
[348283352,1736431888318,-1082.03,0.00012189,2]
[348283353,1736431888329,-302.78584318,0.00012189,2]
[348283354,1736431888338,-752.54,0.00012189,2]
[348283355,1736431888348,-782.4,0.0001219,2]
[348283356,1736431888358,-500.0,0.0001219,2]
[348283357,1736431888368,-1000.48,0.0001219,2]
[348283358,1736431888377,-722.5,0.0001219,2]
[348283359,1736431888386,-635.45,0.0001219,2]
[348283360,1736431888396,-608.97,0.0001219,2]
[348283361,1736431888406,-3501.74,0.0001219,2]
[348283362,1736431888418,-3501.74,0.0001219,2]
[348283363,1736431888429,-1572.69,0.0001219,2]
[348283364,1736431888439,-705.58,0.0001219,2]
[348283365,1736431888449,-772.69,0.0001219,2]
[348283366,1736431888460,-555.89,0.0001219,2]
[348283367,1736431888470,-500.0,0.0001219,2]
[348283368,1736431888480,-500.0,0.0001219,2]
[348283369,1736431888491,-500.0,0.0001219,2]
[348283370,1736431888503,-500.0,0.0001219,2]
[348283371,1736431888517,-500.0,0.0001219,2]
[348283372,1736431888526,-500.0,0.0001219,2]
[348283373,1736431888536,-194.96869257,0.000122,2]
[348283374,1736431888547,-1645.0,0.000122,2]
[348283375,1736431888557,-1093.57741148,0.000122,2]
[348283376,1736431888567,-30026.80256038,0.000122,3]
[348283377,1736431888577,-500.0,0.00012202,2]
[348283378,1736431888587,-2000.0,0.00012202,2]
[348283379,1736431888597,-500.0,0.00012202,2]
[348283380,1736431888608,-200.0,0.00012202,2]
[348283381,1736431888619,-150.0,0.00012229,2]
[348283382,1736431888628,-150.0,0.00012267,2]
[348283383,1736431888638,-150.0,0.00012274,2]
[348283384,1736431888648,-150.0,0.00012274,2]
[348283385,1736431888657,-203.83894166,0.00012285,2]
[348283386,1736431888668,-286.51253116,0.0001229,2]
[348283387,1736431888677,-250000.0,0.0001229,2]
[348283388,1736431888687,-286.51253116,0.0001229,2]
[348283389,1736431888697,-150.0,0.00012294,2]
[348283390,1736431888706,-50920.46225147,0.00012295,3]
[348283391,1736431888716,-1106.66718991,0.00012299,3]
[348283392,1736431888726,-1106.66718991,0.00012299,3]
[348283393,1736431888735,-1106.6671899,0.00012299,3]
[348283394,1736431888745,-500.0,0.00012299,2]
[348283395,1736431888754,-1451047.48690462,0.000123,4]
[348283396,1736431888766,-3859725.43214796,0.000123,2]
[348283397,1736431889064,-214.56,0.00011366,2]
[348283398,1736431889074,-8815.44,0.000123,2]
[348283399,1736431889085,-8048.30185776,0.000123,2]
[348283400,1736431889096,-804.81834,0.000123,2]
[348283401,1736431889107,-27233.91770924,0.000123,2]
[348283402,1736431889118,-297.28996486,0.000123,2]
[348283403,1736431889129,-265.45257076,0.000123,2]
[348283404,1736431889140,-9217.4,0.000123,2]
[348283405,1736431889562,-18590.38709037,0.000123,2]
[348283406,1736432113392,1986.54194459,0.000136,30]
[348283407,1736432222705,578.27,8.219e-05,2]
[348283408,1736432255813,1000.0,0.0002,120]
[348283420,1736432857312,4329.373594,0.0002,120]
[348283426,1736432921931,3252.95,8e-05,2]
[348283427,1736432921953,10000.0,8e-05,2]
[348283428,1736432921974,10000.0,8e-05,2]
[348283429,1736432921995,10000.0,8e-05,2]
[348283430,1736432922020,10000.0,8e-05,2]
[348283431,1736432922041,10000.0,8e-05,2]
[348283432,1736432922063,10000.0,8e-05,2]
[348283433,1736432922087,10000.0,8e-05,2]
[348283434,1736432922109,10000.0,8e-05,2]
[348283435,1736432922130,9885.76530009,8e-05,2]
[348283452,1736433032460,-425.00245911,9.026e-05,2]
[348283453,1736433032471,-370.73754089,9.026e-05,2]
[348283454,1736433032481,-374.19,9.086e-05,2]
[348283455,1736433032491,-1082.28182666,9.208e-05,2]
[348283456,1736433032502,-412.40818989,9.208e-05,2]
[348283458,1736433032514,-5698.70911555,9.208e-05,2]
[348283460,1736433032526,-16706.6008679,9.208e-05,2]
[348283461,1736433032535,-226.07,9.273e-05,2]
[348283463,1736433032545,-250.0,9.328e-05,2]
[348283464,1736433032554,-508.71,9.347e-05,2]
[348283465,1736433032563,-152.33,9.41e-05,2]
[348283466,1736433032572,-250.0,9.41e-05,2]
[348283467,1736433032585,-164.96,9.468e-05,2]
[348283468,1736433032595,-250.0,9.492e-05,2]
[348283469,1736433032604,-168.14,9.551e-05,2]
[348283470,1736433032614,-15159.0,9.603e-05,2]
[348283471,1736433032623,-150.35,9.828e-05,2]
[348283472,1736433032633,-1000.0,9.896e-05,2]
[348283473,1736433032642,-7573.7499,9.897e-05,2]
[348283474,1736433032651,-4949.75,9.897e-05,2]
[348283475,1736433032660,-1461.14355787,9.971e-05,2]
[348283476,1736433032670,-968.61735879,9.972e-05,2]
[348283477,1736433032679,-329.91227386,9.973e-05,2]
[348283478,1736433032689,-200.0,9.974e-05,2]
[348283479,1736433032699,-377.78139855,9.975e-05,2]
[348283480,1736433032709,-2037.23471757,9.975e-05,2]
[348283481,1736433032718,-200.0,9.976e-05,2]
[348283482,1736433032727,-968.61735879,9.976e-05,2]
[348283483,1736433032736,-200.0,9.978e-05,2]
[348283484,1736433032746,-200.0,9.979e-05,2]
[348283485,1736433032759,-968.61735879,9.979e-05,2]
[348283486,1736433032769,-377.78139855,9.98e-05,2]
[348283487,1736433032779,-200.0,9.981e-05,2]
[348283488,1736433032789,-968.61735879,9.981e-05,2]
[348283489,1736433032798,-200.0,9.982e-05,2]
[348283490,1736433032808,-377.78139855,9.983e-05,2]
[348283491,1736433032817,-1461.14355787,9.984e-05,2]
[348283492,1736433032826,-968.61735879,9.984e-05,2]
[348283493,1736433032841,-2037.23471757,9.985e-05,2]
[348283494,1736433032851,-1461.14355787,9.986e-05,2]
[348283495,1736433032860,-2037.23471757,9.986e-05,2]
[348283496,1736433032869,-2037.23471757,9.986e-05,2]
[348283497,1736433032879,-200.0,9.988e-05,2]
[348283498,1736433032889,-1461.14355787,9.989e-05,2]
[348283499,1736433032899,-968.61735879,9.99e-05,2]
[348283500,1736433032908,-32987.09101404,9.99e-05,2]
[348283501,1736433032917,-377.78139855,9.992e-05,2]
[348283502,1736433032927,-377.78139855,9.992e-05,2]
[348283503,1736433032936,-1461.14355787,9.993e-05,2]
[348283504,1736433032945,-500.0,9.995e-05,2]
[348283505,1736433032954,-1987.31,9.995e-05,2]
[348283506,1736433032964,-1031.33,9.995e-05,2]
[348283507,1736433032973,-1553.48,9.995e-05,2]
[348283508,1736433032982,-523.52,9.995e-05,2]
[348283509,1736433032993,-960.21,9.995e-05,2]
[348283510,1736433033002,-552.52,9.995e-05,2]
[348283511,1736433033012,-500.0,9.995e-05,2]
[348283512,1736433033021,-500.0,9.995e-05,2]
[348283513,1736433033030,-500.0,9.995e-05,2]
[348283514,1736433033040,-500.0,9.995e-05,2]
[348283515,1736433033050,-500.0,9.995e-05,2]
[348283516,1736433033059,-1048.43,9.995e-05,2]
[348283517,1736433033069,-500.0,9.995e-05,2]
[348283518,1736433033078,-500.0,9.995e-05,2]
[348283519,1736433033091,-500.0,9.995e-05,2]
[348283520,1736433033100,-500.0,9.995e-05,2]
[348283521,1736433033110,-500.0,9.995e-05,2]
[348283522,1736433033119,-500.0,9.995e-05,2]
[348283524,1736433033129,-3152.92,9.995e-05,2]
[348283526,1736433033139,-500.0,9.995e-05,2]
[348283527,1736433033149,-500.0,9.995e-05,2]
[348283530,1736433033159,-500.0,9.995e-05,2]
[348283531,1736433033168,-500.0,9.995e-05,2]
[348283533,1736433033177,-252.98,9.995e-05,2]
[348283535,1736433033187,-967.43,9.995e-05,2]
[348283537,1736433033196,-500.0,9.995e-05,2]
[348283539,1736433033205,-1997.27,9.996e-05,2]
[348283541,1736433033215,-500.0,9.996e-05,2]
[348283543,1736433033224,-500.0,9.996e-05,2]
[348283545,1736433033233,-500.0,9.996e-05,2]
[348283569,1736433033447,-500.0,9.996e-05,2]
[348283571,1736433033458,-500.0,9.996e-05,2]
[348283573,1736433033467,-500.0,9.996e-05,2]
[348283575,1736433033477,-500.0,9.996e-05,2]
[348283577,1736433033486,-500.0,9.996e-05,2]
[348283578,1736433033495,-500.0,9.996e-05,2]
[348283581,1736433033505,-800.95,9.996e-05,2]
[348283583,1736433033514,-500.0,9.996e-05,2]
[348283584,1736433033524,-500.0,9.996e-05,2]
[348283587,1736433033533,-500.0,9.996e-05,2]
[348283589,1736433033543,-500.0,9.996e-05,2]
[348283591,1736433033552,-500.0,9.996e-05,2]
[348283593,1736433033561,-500.0,9.996e-05,2]
[348283594,1736433033570,-500.0,9.996e-05,2]
[348283596,1736433033580,-500.0,9.996e-05,2]
[348283598,1736433033591,-500.0,9.996e-05,2]
[348283600,1736433033600,-500.0,9.996e-05,2]
[348283602,1736433033609,-500.0,9.996e-05,2]
[348283604,1736433033619,-500.0,9.996e-05,2]
[348283606,1736433033628,-500.0,9.996e-05,2]
[348283608,1736433033638,-582.1,9.996e-05,2]
[348283610,1736433033647,-500.0,9.996e-05,2]
[348283612,1736433033657,-500.0,9.996e-05,2]